Cogmind - Beta 13 @@@ ROGUE MODE // 2024.04.02 @ 00:59:09 Player: Gantra Result: Self-destructed Performance ------------- Evolutions (1) 500 Regions Visited (2) 400 Robots Destroyed (21) 105 Value Destroyed (681) 681 Prototype IDs (4) 80 Alien Tech Used (0) 0 Bonus (0) 0 TOTAL SCORE: 1766 Bonus ------- None Cogmind --------- Core Integrity 282/400 Matter 257/300 Energy 250/250 System Corruption 0% Temperature Warm (171) Movement Walking (190) Ox1 Location -9/Materials Parts ------- > --- POWER (1) -------- Ion Engine > --- PROPULSION (3) --- Aluminum Leg Aluminum Leg > --- UTILITY (3) ------ Large Storage Unit Signal Interpreter Hardened Light Armor Plating > --- WEAPON (2) ------- (None) > --- INVENTORY (15) --- Ion Engine High-capacity Storage Unit Large Matter Pod (85) Hardened Light Armor Plating Hardened Light Armor Plating Datajack Peak State ------------ > --- POWER ------------ Ion Engine > --- PROPULSION ------- Aluminum Leg Aluminum Leg Aluminum Leg > --- UTILITY ---------- Signal Interpreter Hardened Light Armor Plating Hardened Light Armor Plating > --- WEAPON ----------- Medium Laser Light Assault Rifle > --- INVENTORY -------- Large Storage Unit High-capacity Storage Unit Large Matter Pod Hardened Light Armor Plating Datajack [Rating: 11] Favorites ----------- Power Ion Engine Engine Ion Engine Propulsion Aluminum Leg Leg Aluminum Leg Utility Signal Interpreter Storage Small Storage Unit Processor Signal Interpreter Protection Hardened Light Armor Plating Weapon Medium Laser Energy Gun Medium Laser Ballistic Gun Light Assault Rifle Launcher Grenade Launcher Build | -11 -10 -9 ------- Run | Yrd Mat Mat Slots Evolved 2 | . . 2 Power . | . . . Propulsion 1 | . . 1 Utility 1 | . . 1 Weapon . | . . . Parts Attached 28 | 6 18 4 Power 6 | 2 3 1 Engine 6 | 2 3 1 Core . | . . . Reactor . | . . . Propulsion 8 | 2 5 1 Treads . | . . . Leg 8 | 2 5 1 Wheel . | . . . Hover . | . . . Flight . | . . . Utility 7 | . 5 2 Device . | . . . Storage 3 | . 2 1 Processor 1 | . 1 . Hackware . | . . . Protection 3 | . 2 1 Artifact . | . . . Weapon 7 | 2 5 . Energy Gun 3 | 1 2 . Energy Cannon . | . . . Ballistic Gun 2 | 1 1 . Ballistic Cannon . | . . . Launcher 2 | . 2 . Special Weapon . | . . . Impact Weapon . | . . . Slashing Weapon . | . . . Piercing Weapon . | . . . Special Melee Weapon . | . . . Unidentified Prototypes . | . . . Parts Lost 8 | . 5 3 Power 1 | . 1 . Propulsion 2 | . 1 1 Utility . | . . . Weapon 5 | . 3 2 Highest Loss Streak 3 | . 3 3 To Critical Strikes . | . . . Average Slot Usage (%) 95 | . 96 89 Engine 13 | . 13 11 Leg 27 | . 27 25 Storage 4 | . 4 4 Processor 12 | . 13 11 Protection 8 | . 7 17 Energy Gun 13 | . 13 10 Ballistic Gun 11 | . 11 8 Launcher 1 | . 2 . Naked Turns . | . . . Heaviest Build 33 | 9 15 33 Greatest Support 30 | 20 20 30 Greatest Overweight (x) 1 | . 1 1 Average Overweight (x) . | . . . Largest Inventory Capacity 15 | 5 15 15 Average Capacity 6 | 5 6 8 Most Carried 8 | 3 8 6 Average Carried 4 | . 5 5 Final Capacity 15 | 5 5 15 Final Carried 6 | 3 4 6 Class Distribution -------------------- 90% | Mutant 9% | Scavenger-Mutant Dominant Class ---------------- Mutant | -10/Materials Mutant | -9/Materials Resources | -11 -10 -9 ----------- Run | Yrd Mat Mat Matter Collected 723 | 262 399 62 Remotely . | . . . Salvage Created 758 | 42 601 115 Parts 30 | 2 23 5 Haulers Intercepted . | . . . Recyclers Shooed . | . . . Parts Field Recycled . | . . . Retrieved Matter . | . . . Parts Self-Destructed . | . . . Prevented . | . . . Kills | -11 -10 -9 ------- Run | Yrd Mat Mat Combat Hostiles Destroyed 17 | 1 13 3 Guns 12 | 1 8 3 AOE 5 | . 5 . Classes Destroyed 3 | 1 2 . Recycler 2 | . 2 . Watcher 2 | . 2 . Grunt 17 | 1 13 3 Best Kill Streak 7 | 1 7 2 Combat Bots Only 4 | 1 4 2 Max Kills in Single Turn 2 | 1 2 1 Gunslinging . | . . . Exploded 1 | . 1 . Melee . | . . . Uniques/NPCs Destroyed . | . . . Combat | -11 -10 -9 -------- Run | Yrd Mat Mat Hostile Shots Fired 156 | 5 79 72 Missed 39 | 4 19 16 Damage Taken 1497 | 11 838 648 Core 242 | . 124 118 Absorbed by Shields . | . . . Core Remaining (%) 75 | 100 50 . Volleys Fired 79 | 4 55 20 Largest 2 | 2 2 2 Hottest 80 | 60 80 70 Shots Fired 146 | 8 104 34 Gun 137 | 8 95 34 Cannon . | . . . Launcher 9 | . 9 . Special . | . . . Kinetic 61 | 4 43 14 Thermal 60 | . 40 20 Explosive 9 | . 9 . Electromagnetic 16 | 4 12 . Robot Hit Streak 7 | 4 7 5 Robot Miss Streak 4 | 1 4 4 Penetration Max . | . . . Secondary Targets . | . . . Shots Hit Robots 88 | 5 64 19 Core Hits 50 | 2 40 8 Critical Kills . | . . . Critical Parts Destroyed . | . . . Critical Strikes 3 | . 3 . Burn 3 | . 3 . Melee Attacks . | . . . Impact . | . . . Slashing . | . . . Piercing . | . . . Sneak Attacks . | . . . Combat Hostiles . | . . . Follow-up Attacks . | . . . Damage Inflicted 1529 | 63 1247 219 Guns 918 | 63 640 215 Cannons . | . . . Explosions 607 | . 607 . Melee . | . . . Ramming 4 | . . 4 Kinetic 386 | 35 290 61 Thermal 480 | . 326 154 Explosive 519 | . 519 . Electromagnetic 140 | 28 112 . Impact . | . . . Slashing . | . . . Piercing . | . . . Highest Corruption . | . . . Average Corruption . | . . . Corruption Purged . | . . . Corruption Blocked . | . . . Overload Shots . | . . . Overflow Damage 14 | . 14 . Projectiles . | . . . Explosions 14 | . 14 . Melee . | . . . Knockbacks . | . . . Impact . | . . . Kinetic . | . . . Secondary . | . . . Self-Inflicted Damage 74 | . 74 . Shots 3 | . 3 . Rammed . | . . . Targets Rammed 2 | . . 2 Kicked 2 | . . 2 Crushed . | . . . Highest Temperature 521 | 6 290 521 Average Temperature 121 | 6 71 235 Received Heat Transfer 846 | 6 462 378 Effects 6 | . . 6 Shutdowns 3 | . . 3 Energy Bleed 1 | . . 1 Matter Decay 2 | . . 2 Siege Activations . | . . . Robots Corrupted . | . . . Combat Hostiles . | . . . Parts Fried . | . . . Impact Corruptions . | . . . Robots Melted . | . . . Combat Hostiles . | . . . Parts Melted 2 | . 2 . Heat Transferred 1469 | . 1025 444 Parts Sabotaged . | . . . Parts Stolen . | . . . Parts Stripped . | . . . Power Chain Reactions 1 | . 1 . Alert | -11 -10 -9 ------- Run | Yrd Mat Mat Peak Influence 376 | 20 376 138 Initial 72 | . 13 72 Average 179 | 2 218 106 Maximum Alert Level 1 | . 1 . Low Security (%) 53 | 100 37 100 Level 1 46 | . 62 . Level 2 . | . . . Level 3 . | . . . Level 4 . | . . . Level 5 . | . . . High Security . | . . . Max Security . | . . . Squads Dispatched 6 | . 5 1 Investigation 5 | . 4 1 Extermination . | . . . Reinforcement 1 | . 1 . Assault . | . . . Garrison . | . . . Intercept . | . . . Searches Triggered . | . . . Construction Impeded . | . . . Haulers Reinforced . | . . . Active Scanning Responses . | . . . Cargo Convoy Interrupts . | . . . Stealth | -11 -10 -9 --------- Run | Yrd Mat Mat Distress Signals 3 | . 2 1 Communications Jammed . | . . . Distress Signals . | . . . Times Spotted 28 | 1 18 9 Peak Tracking Total 6 | 1 5 6 Tactical Retreats 2 | . 2 . Traps | -11 -10 -9 ------- Run | Yrd Mat Mat Traps Triggered 1 | . 1 . Indirectly . | . . . Trap Hack Attempts . | . . . Triggered . | . . . Disarmed . | . . . Reprogrammed . | . . . Reused . | . . . Traps Extracted . | . . . Installed . | . . . Triggered . | . . . Machines | -11 -10 -9 ---------- Run | Yrd Mat Mat Machines Disabled 2 | . 2 . Max in Single Turn 1 | . 1 . Machines Repaired . | . . . Machines Dismantled . | . . . Machines Sabotaged . | . . . Overloaded Fab Kills . | . . . Hacking | -11 -10 -9 --------- Run | Yrd Mat Mat Machines Accessed 8 | . 7 1 Terminals 8 | . 7 1 Fabricators . | . . . Repair Stations . | . . . Recycling Units . | . . . Scanalyzers . | . . . Garrison Access . | . . . Total Hacks 37 | . 34 3 Successful 15 | . 14 1 Failed 22 | . 20 2 Catastrophic . | . . . Database Lockouts . | . . . Manual . | . . . Terminals 37 | . 34 3 Fabricators . | . . . Repair Stations . | . . . Recycling Units . | . . . Scanalyzers . | . . . Garrison Access . | . . . Terminal Hacks 15 | . 14 1 Record 8 | . 7 1 Prototype ID Bank 2 | . 2 . Emergency Access Points 1 | . 1 . Scanalyzer Index 1 | . 1 . Alert Level 1 | . 1 . Locate Traps 1 | . 1 . Investigation Status 1 | . 1 . Fabricator Hacks . | . . . Repair Station Hacks . | . . . Recycling Unit Hacks . | . . . Scanalyzer . | . . . Garrison Access Hacks . | . . . Unauthorized Hacks . | . . . Terminals . | . . . Fabricators . | . . . Repair Stations . | . . . Recycling Units . | . . . Scanalyzers . | . . . Garrison Access . | . . . Data Cores Recovered . | . . . Used . | . . . Hacking Detections 8 | . 7 1 Full Trace Events 7 | . 6 1 Feedback Events . | . . . Feedback Blocked . | . . . Robot Schematics Acquired . | . . . Robots Built . | . . . Authchips . | . . . Time . | . . . Total Robot Build Rating . | . . . Part Schematics Acquired . | . . . Parts Built . | . . . Authchips . | . . . Time . | . . . Total Part Build Rating . | . . . Parts Repaired . | . . . Time . | . . . Parts Recycled . | . . . Recycled Matter . | . . . Retrieved Matter . | . . . Retrieved Components . | . . . Parts Scanalyzed . | . . . Part Schematics Acquired . | . . . Parts Damaged . | . . . Bothacking | -11 -10 -9 ------------ Run | Yrd Mat Mat Used RIF Installer . | . . . Robots Hacked . | . . . Non-combat . | . . . Combat . | . . . Robot Hacks Applied . | . . . Relay Couplers Released . | . . . Fabnet Peak Effective % . | . . . Robots Rewired . | . . . Allies Hacked . | . . . Hacks Repelled . | . . . Allies | -11 -10 -9 -------- Run | Yrd Mat Mat Total Allies . | . . . Largest Group . | . . . Highest-Rated Group . | . . . Highest-Rated Ally . | . . . Total Orders . | . . . Ally Attacks . | . . . Total Damage . | . . . Kills . | . . . Allies Corrupted . | . . . Allies Melted . | . . . Intel | -11 -10 -9 ------- Run | Yrd Mat Mat Robot Analysis Total . | . . . Derelict Logs Recovered . | . . . Drone Launches . | . . . Drone Recoveries . | . . . Exploration | -11 -10 -9 ------------- Run | Yrd Mat Mat Turns Passed 1259 | 117 932 210 Spaces Moved 806 | 92 608 106 Core 27 | 27 . . Treads . | . . . Legs 779 | 65 608 106 Wheels . | . . . Hover . | . . . Flight . | . . . Fastest Speed 50 | 50 120 120 Average Speed 120 | 99 120 137 Slowest Speed 190 | 120 190 190 Overloaded Moves . | . . . Propulsion Burnouts . | . . . Robots Hopped . | . . . Cave-ins Triggered . | . . . Exploration Rate (%) 29 | 7 69 11 Regions Visited 2 Branch Regions . Pre-discovered Areas . | . . . Known Exits Taken 1 | . 1 . Unknown Exits Taken 1 | 1 . . Scrap Searched . | . . . Spaces Dug . | . . . Terrain Destroyed 54 | . 54 . Melee . | . . . Projectile . | . . . AOE 54 | . 54 . Terrain Rammed . | . . . Walls Destroyed . | . . . Machines Disabled . | . . . Actions | -11 -10 -9 --------- Run | Yrd Mat Mat Total 954 | 109 710 135 Wait . | . . . Move 804 | 91 607 106 Hop . | . . . Pick Up 30 | 8 19 3 Fast Attach 1 | . . 1 Attach 13 | 5 7 1 Detach . | . . . Swap 14 | 1 11 2 Drop 11 | . 11 . Fire 79 | 4 55 20 Melee . | . . . Ram . | . . . Kick 2 | . . 2 Crush . | . . . Escape Stasis . | . . . Rewire . | . . . Trap . | . . . Miscellaneous . | . . . Route ------- -11/Scrapyard -10/Materials (discovered 4 exits: *Mat x3 / [*Min]) -9/Materials History --------- Turn | Location | Event 2 | -11/Scrapyard | Met Revision 17 86 | -11/Scrapyard | Discovered new exit (range 8) 118 | -11/Scrapyard | Entered Materials 243 | -10/Materials | Discovered new exit (range 14) 246 | -10/Materials | Lost 3 parts (1p2w) 253 | -10/Materials | Discovered new exit (range 14) 304 | -10/Materials | Build established: Mutant 382 | -10/Materials | Discovered new exit (range 15) 467 | -10/Materials | Discovered new exit (range 3) 540 | -10/Materials | Identified exit to Materials 1050 | -10/Materials | Entered another Materials area 1050 | -9/Materials | Evolved 2 slots: Propulsion x1, Utility x1 1260 | -9/Materials | Self-destructed Last Messages --------------- T-07 Excavator is excavating. U-05 Engineer lays Concrete. K-01 Serf collects debris. R-06 Scavenger collects Wheel. Kicked U-05 Engineer. K-01 Serf collects debris. T-07 Excavator is excavating. U-05 Engineer lays Concrete. K-01 Serf collects debris. T-07 Excavator is excavating. U-05 Engineer lays Concrete. T-07 Excavator is excavating. U-05 Engineer lays Concrete. Aluminum Leg destroyed. T-07 Excavator is excavating. U-05 Engineer lays Concrete. T-07 Excavator is excavating. U-05 Engineer lays Concrete. G-34 Mercenary destroyed. Med. Laser destroyed. Map ----- +----------------------------------------------------+ | ?????????????????????????????????????????????????? | | ?????????????????????????????????????????????????? | | ?????????????????????????????????????????????????? | | ?????????????????????????????????????????????????? | | ?????????????????????????????????????????????????? | | ?????????????????????????????????????????????????? | | ?????????????????????????????????????????????????? | | ?????????????????????????????????????????????????? | | ?????????????????????????????????????????????????? | | ?????????????????????????????????????????????????? | | ?????????????????????????????????????????????????? | | ?????????????????????????????????????????????????? | | ?????????????????????????????????????????????????? | | ???????????????????????????????????? ??????????? | | ???????????????????????????????????? #?????????? | | ???????????????????????????????????? #?????????? | | ???????????????????????????????????# #?????????? | | ???????#############???????????????# #?????????? | | ??????? + #???????????????# #?????????? | | ??????? # #???########????# #?????????? | | ??????? # #???# #????# #?????????? | | ??????? # #???# t #????# #?????????? | | ???????# # #???# u #????# #?????????? | | ######## # ! #???# u#?????# #?????????? | | "T" # # #???# ggg##????# #?????????? | | # # #???# @%g #????# #?????????? | | """ # #####+############# ####### #?????????? | | """"" # #?????????? | | """"" + ########### | | """"" # | | """ # ########### | | # #?????????# | | # #?????????# | | ######## #?????????# | | ???????#####?????????# | | ??????????????????? | | ??????????????????#### ##########+############## | | ?????????????????????##+##?????????? ????????????? | | ?????????????????????????????????????????????????? | | ?????????????????????????????????????????????????? | | ?????????????????????????????????????????????????? | | ?????????????????????????????????????????????????? | | ?????????????????????????????????????????????????? | | ?????????????????????????????????????????????????? | | ?????????????????????????????????????????????????? | | ?????????????????????????????????????????????????? | | ?????????????????????????????????????????????????? | | | | | | | +----------------------------------------------------+ Best States ------------- Heat Dissipation 28 Energy Generation 10 Energy Capacity 250 Matter Stores 300 Matter Capacity 300 Sight Range 16 Terrain Scan Density 10 Armor Coverage 300 Evasion (%) 55 Item Schematics ----------------- None Robot Schematics ------------------ None Fabricated ------------ Nothing Alien Tech Used ----------------- None Achievements -------------- None Challenges ------------ None Game ------ Seed SingularitySystemKit Manual? 0 Play Time 00:20:42 Cumulative 1.1 hours Start 2024.04.02 @ 00:38:49 End 2024.04.02 @ 00:59:09 Sessions 1 Manual Loads 0 Difficulty Rogue Special Mode None Game No. 2 Rogue 2 Adventurer 0 Explorer 0 Win Type - Total 0 Types 0/0/0/0/0/0/0/0/0 Lore% 1 Gallery% 3 Achievement% 4 Wizard Run 0 Options --------- Layout 1 ASCII 0 Keyboard 0 Movement Arrows Keybinds 0 Fullscreen 1 Font 24/Smallcaps Map View 50x35 Zoom Use 0% Tactical HUD 0 Map Filters NONE Filters NONE Steam 1 RUN: b015d108-0c9c-4532-b7c5-2b0efec6a212